[Event "Live Chess"]
[Site "Chess.com"]
[Date "2024.06.02"]
[Round "-"]
[White "KeithArkell"]
[Black "ShanthamGrarks"]
[Result "1-0"]
[WhiteElo "2432"]
[BlackElo "1895"]
[TimeControl "300"]
[EndTime "19:39:13 PDT"]
[Termination "KeithArkell won by resignation"]

1. d4 {[%clk 0:04:57.6]} 1... g6 {[%clk 0:04:56.4]} 2. Nf3 {[%clk 0:04:56.9]}
2... Bg7 {[%clk 0:04:55.9]} 3. c4 {[%clk 0:04:56.3]} 3... Nf6 {[%clk 0:04:55.1]}
4. Nc3 {[%clk 0:04:55.8]} 4... d6 {[%clk 0:04:54.5]} 5. g3 {[%clk 0:04:55.4]}
5... O-O {[%clk 0:04:53.7]} 6. Bg2 {[%clk 0:04:55]} 6... Nbd7 {[%clk 0:04:52.2]}
7. d5 {[%clk 0:04:54.5]} 7... Re8 {[%clk 0:04:50]} 8. O-O {[%clk 0:04:53.1]}
8... a6 {[%clk 0:04:40.2]} 9. Be3 {[%clk 0:04:49.7]} 9... Nf8 {[%clk 0:04:38.5]}
10. h3 {[%clk 0:04:48.4]} 10... e6 {[%clk 0:04:37.9]} 11. dxe6 {[%clk
0:04:47.7]} 11... Bxe6 {[%clk 0:04:35]} 12. b3 {[%clk 0:04:46.3]} 12... Nh5
{[%clk 0:04:27.8]} 13. Qd2 {[%clk 0:04:44.6]} 13... Qd7 {[%clk 0:04:21.2]} 14.
Kh2 {[%clk 0:04:42.7]} 14... Nf6 {[%clk 0:04:19.1]} 15. Rad1 {[%clk 0:04:41.5]}
15... Rad8 {[%clk 0:04:05.3]} 16. Ng5 {[%clk 0:04:40.3]} 16... Nh5 {[%clk
0:03:54.2]} 17. Nxe6 {[%clk 0:04:38.3]} 17... Nxe6 {[%clk 0:03:47.6]} 18. Bxb7
{[%clk 0:04:37]} 18... c6 {[%clk 0:03:18]} 19. Bxa6 {[%clk 0:04:35.8]} 19... Ra8
{[%clk 0:03:16.4]} 20. Qxd6 {[%clk 0:04:34.7]} 20... Qxd6 {[%clk 0:03:14.7]} 21.
Rxd6 {[%clk 0:04:34.6]} 21... Rxa6 {[%clk 0:03:13.1]} 22. Ne4 {[%clk 0:04:29.9]}
22... Nf6 {[%clk 0:03:04.8]} 23. Nxf6+ {[%clk 0:04:28.4]} 23... Bxf6 {[%clk
0:03:03.5]} 24. a4 {[%clk 0:04:26.1]} 24... Bg7 {[%clk 0:02:52.4]} 25. Rfd1
{[%clk 0:04:24.2]} 25... h5 {[%clk 0:02:45.1]} 26. a5 {[%clk 0:04:23.3]} 26...
Rxa5 {[%clk 0:02:41.3]} 27. Rxc6 {[%clk 0:04:21.9]} 27... Ra2 {[%clk 0:02:40]}
28. Re1 {[%clk 0:04:17.7]} 28... Bd4 {[%clk 0:02:38.2]} 29. Bxd4 {[%clk
0:04:11.7]} 29... Nxd4 {[%clk 0:02:37]} 30. Rd6 {[%clk 0:04:10.9]} 30... Rexe2
{[%clk 0:02:26.9]} 31. Rxe2 {[%clk 0:04:09.2]} 31... Nxe2 {[%clk 0:02:26]} 32.
b4 {[%clk 0:04:06.4]} 32... Nc3 {[%clk 0:02:24.3]} 33. Rf6 {[%clk 0:03:55.3]}
33... Kg7 {[%clk 0:02:21.4]} 34. Rf4 {[%clk 0:03:52.5]} 34... Rb2 {[%clk
0:02:17.7]} 35. b5 {[%clk 0:03:51.6]} 35... Nxb5 {[%clk 0:02:10.7]} 36. cxb5
{[%clk 0:03:51.5]} 36... Rxb5 {[%clk 0:02:09]} 37. Kg2 {[%clk 0:03:50.6]} 37...
g5 {[%clk 0:02:04]} 38. Rc4 {[%clk 0:03:49]} 38... Kg6 {[%clk 0:02:01.8]} 39.
Rc6+ {[%clk 0:03:46.9]} 39... f6 {[%clk 0:02:01.1]} 40. Rc4 {[%clk 0:03:45.4]}
40... Re5 {[%clk 0:01:58.6]} 41. h4 {[%clk 0:03:44.7]} 41... g4 {[%clk
0:01:56.1]} 42. Kf1 {[%clk 0:03:43.5]} 42... Ra5 {[%clk 0:01:54.3]} 43. Rc8
{[%clk 0:03:42.5]} 43... Ra1+ {[%clk 0:01:52.1]} 44. Kg2 {[%clk 0:03:41.3]}
44... Ra2 {[%clk 0:01:51.5]} 45. Rg8+ {[%clk 0:03:39.9]} 45... Kf5 {[%clk
0:01:48.8]} 46. Re8 {[%clk 0:03:37.2]} 46... Ra3 {[%clk 0:01:45.7]} 47. Kf1
{[%clk 0:03:31.2]} 47... Ra1+ {[%clk 0:01:42.3]} 48. Ke2 {[%clk 0:03:30.1]}
48... Ra2+ {[%clk 0:01:41.8]} 49. Ke3 {[%clk 0:03:29.2]} 49... Ra3+ {[%clk
0:01:40.5]} 50. Ke2 {[%clk 0:03:24.2]} 50... Ra2+ {[%clk 0:01:39.4]} 51. Kf1
{[%clk 0:03:23.7]} 51... Ra1+ {[%clk 0:01:38.7]} 52. Kg2 {[%clk 0:03:23]} 52...
Ra2 {[%clk 0:01:37.5]} 53. Rc8 {[%clk 0:03:21.9]} 53... Rb2 {[%clk 0:01:36]} 54.
Rc5+ {[%clk 0:03:19.4]} 54... Kg6 {[%clk 0:01:35.4]} 55. Kf1 {[%clk 0:03:18.6]}
55... Ra2 {[%clk 0:01:34.8]} 56. Ke1 {[%clk 0:03:17.6]} 56... Ra1+ {[%clk
0:01:33.8]} 57. Kd2 {[%clk 0:03:15.8]} 57... Ra2+ {[%clk 0:01:33.4]} 58. Ke3
{[%clk 0:03:14.9]} 58... Ra3+ {[%clk 0:01:32.5]} 59. Ke4 {[%clk 0:03:14.2]}
59... Ra2 {[%clk 0:01:29.7]} 60. Ke3 {[%clk 0:03:08]} 60... Ra3+ {[%clk
0:01:28.6]} 61. Kd2 {[%clk 0:03:06]} 61... Ra2+ {[%clk 0:01:27.9]} 62. Rc2
{[%clk 0:03:04.9]} 62... Ra3 {[%clk 0:01:23.6]} 63. Rc3 {[%clk 0:03:02.2]} 63...
Ra2+ {[%clk 0:01:22.6]} 64. Ke3 {[%clk 0:03:01.6]} 64... Rb2 {[%clk 0:01:18.2]}
65. f3 {[%clk 0:02:58]} 65... gxf3 {[%clk 0:01:15.4]} 66. Kxf3 {[%clk
0:02:57.4]} 66... Rb5 {[%clk 0:01:14.1]} 67. Rc4 {[%clk 0:02:56.6]} 67... Rf5+
{[%clk 0:01:12.2]} 68. Rf4 {[%clk 0:02:55.3]} 68... Ra5 {[%clk 0:01:11.6]} 69.
Re4 {[%clk 0:02:54.2]} 69... Rf5+ {[%clk 0:01:07.6]} 70. Ke3 {[%clk 0:02:53.5]}
70... Ra5 {[%clk 0:01:06.8]} 71. Rd4 {[%clk 0:02:52.7]} 71... Ra3+ {[%clk
0:01:05.7]} 72. Kf4 {[%clk 0:02:52.1]} 72... Ra2 {[%clk 0:01:02.1]} 73. Rd8
{[%clk 0:02:48.6]} 73... Ra4+ {[%clk 0:01:00.2]} 74. Ke3 {[%clk 0:02:47.8]}
74... Ra3+ {[%clk 0:00:59.1]} 75. Ke4 {[%clk 0:02:47.3]} 75... Ra4+ {[%clk
0:00:58.2]} 76. Rd4 {[%clk 0:02:45.9]} 76... Ra3 {[%clk 0:00:57]} 77. Kf4 {[%clk
0:02:43.6]} 77... Ra5 {[%clk 0:00:55.6]} 78. Re4 {[%clk 0:02:39.5]} 78... Rf5+
{[%clk 0:00:53.8]} 79. Ke3 {[%clk 0:02:38.4]} 79... Rf1 {[%clk 0:00:53.3]} 80.
Rc4 {[%clk 0:02:33]} 80... Re1+ {[%clk 0:00:51.3]} 81. Kf2 {[%clk 0:02:31.4]}
81... Re5 {[%clk 0:00:49.9]} 82. Rc8 {[%clk 0:02:27.4]} 82... Rf5+ {[%clk
0:00:49.3]} 83. Kg2 {[%clk 0:02:25.7]} 83... Rb5 {[%clk 0:00:49.2]} 84. Rg8+
{[%clk 0:02:24.5]} 84... Kf5 {[%clk 0:00:48.4]} 85. Kh3 {[%clk 0:02:22.8]} 85...
Rb4 {[%clk 0:00:45.6]} 86. Rg7 {[%clk 0:02:21.5]} 86... Rc4 {[%clk 0:00:43.5]}
87. Rg8 {[%clk 0:02:20.7]} 87... Rd4 {[%clk 0:00:42.5]} 88. Rh8 {[%clk 0:02:20]}
88... Kg6 {[%clk 0:00:36.6]} 89. Re8 {[%clk 0:02:18.6]} 89... Rg4 {[%clk
0:00:34.2]} 90. Rg8+ {[%clk 0:02:15.6]} 90... Kf5 {[%clk 0:00:33.7]} 91. Rxg4
{[%clk 0:02:14.2]} 91... hxg4+ {[%clk 0:00:33.3]} 92. Kg2 {[%clk 0:02:13.1]}
92... Kg6 {[%clk 0:00:32.2]} 93. Kf2 {[%clk 0:02:12.2]} 93... f5 {[%clk
0:00:27.9]} 94. Ke3 {[%clk 0:02:11]} 94... Kf6 {[%clk 0:00:26.8]} 95. Kf4 {[%clk
0:02:09.7]} 95... Kg6 {[%clk 0:00:26.4]} 96. Ke5 {[%clk 0:02:09]} 96... f4
{[%clk 0:00:22.7]} 97. Kxf4 {[%clk 0:02:08]} 97... Kh5 {[%clk 0:00:22.2]} 98.
Kf5 {[%clk 0:02:07.5]} 98... Kh6 {[%clk 0:00:21.1]} 99. Kxg4 {[%clk 0:02:06.8]}
1-0

[Event "Live Chess"]
[Site "Chess.com"]
[Date "2024.06.02"]
[Round "-"]
[White "KGreenGator"]
[Black "IgorSchukin"]
[Result "0-1"]
[WhiteElo "1781"]
[BlackElo "1771"]
[TimeControl "300"]
[EndTime "19:40:11 PDT"]
[Termination "IgorSchukin won by checkmate"]

1. c4 {[%clk 0:04:57.2]} 1... Nf6 {[%clk 0:04:58.2]} 2. d4 {[%clk 0:04:55.4]}
2... e6 {[%clk 0:04:56.6]} 3. Nc3 {[%clk 0:04:53.8]} 3... d5 {[%clk 0:04:56.2]}
4. e3 {[%clk 0:04:52.3]} 4... Bb4 {[%clk 0:04:53.2]} 5. Bd2 {[%clk 0:04:50.5]}
5... Bxc3 {[%clk 0:04:52.1]} 6. Bxc3 {[%clk 0:04:49.2]} 6... O-O {[%clk
0:04:51.1]} 7. Bb4 {[%clk 0:04:47]} 7... Re8 {[%clk 0:04:48.8]} 8. Nf3 {[%clk
0:04:46.5]} 8... b6 {[%clk 0:04:47.7]} 9. c5 {[%clk 0:04:44.3]} 9... Ba6 {[%clk
0:04:45.1]} 10. Bxa6 {[%clk 0:04:41.3]} 10... Nxa6 {[%clk 0:04:44.2]} 11. Ba3
{[%clk 0:04:41]} 11... bxc5 {[%clk 0:04:38.7]} 12. dxc5 {[%clk 0:04:39.3]} 12...
c6 {[%clk 0:04:37.7]} 13. Qa4 {[%clk 0:04:36.7]} 13... Qc8 {[%clk 0:04:31.2]}
14. Ne5 {[%clk 0:04:32.4]} 14... Nb8 {[%clk 0:04:27.5]} 15. O-O {[%clk
0:04:29.3]} 15... Nfd7 {[%clk 0:04:25.5]} 16. Nd3 {[%clk 0:04:25.4]} 16... e5
{[%clk 0:04:23.2]} 17. e4 {[%clk 0:04:23.1]} 17... Nf6 {[%clk 0:04:15.8]} 18.
exd5 {[%clk 0:04:20.3]} 18... cxd5 {[%clk 0:04:08.8]} 19. Rfe1 {[%clk
0:04:18.6]} 19... e4 {[%clk 0:04:06.3]} 20. Nf4 {[%clk 0:04:13.1]} 20... Qc6
{[%clk 0:04:02.7]} 21. Qxc6 {[%clk 0:04:10.4]} 21... Nxc6 {[%clk 0:04:01.7]} 22.
b3 {[%clk 0:04:06.8]} 22... a5 {[%clk 0:03:59.7]} 23. Bb2 {[%clk 0:04:05.4]}
23... d4 {[%clk 0:03:56.5]} 24. Rad1 {[%clk 0:03:59.8]} 24... Rad8 {[%clk
0:03:54.2]} 25. a3 {[%clk 0:03:54.9]} 25... g5 {[%clk 0:03:51.9]} 26. Ne2 {[%clk
0:03:51.9]} 26... d3 {[%clk 0:03:42.8]} 27. Ng3 {[%clk 0:03:48.1]} 27... Nd7
{[%clk 0:03:32.1]} 28. Rxe4 {[%clk 0:03:42.9]} 28... Nxc5 {[%clk 0:03:27.9]} 29.
Rxe8+ {[%clk 0:03:39.6]} 29... Rxe8 {[%clk 0:03:26.7]} 30. Nh5 {[%clk
0:03:36.7]} 30... Re2 {[%clk 0:03:21.5]} 31. Bc3 {[%clk 0:03:29.3]} 31... Rc2
{[%clk 0:03:16.1]} 32. Bf6 {[%clk 0:03:08.6]} 32... Nxb3 {[%clk 0:03:11.7]} 33.
Bxg5 {[%clk 0:03:03.9]} 33... d2 {[%clk 0:02:53]} 34. Kf1 {[%clk 0:02:58.7]}
34... Ncd4 {[%clk 0:02:39.5]} 35. Bxd2 {[%clk 0:02:37.6]} 35... Rxd2 {[%clk
0:02:29.3]} 36. Rxd2 {[%clk 0:02:33.1]} 36... Nxd2+ {[%clk 0:02:28.2]} 37. Ke1
{[%clk 0:02:30.8]} 37... Nc4 {[%clk 0:02:26.2]} 38. a4 {[%clk 0:02:26.6]} 38...
Nb2 {[%clk 0:02:25.2]} 39. Nf6+ {[%clk 0:02:23.4]} 39... Kg7 {[%clk 0:02:23.1]}
40. Nd5 {[%clk 0:02:21.8]} 40... Nxa4 {[%clk 0:02:19]} 41. Ne3 {[%clk
0:02:19.7]} 41... Nb6 {[%clk 0:02:15.6]} 42. Nd1 {[%clk 0:02:16.4]} 42... Kf6
{[%clk 0:02:13.2]} 43. Nb2 {[%clk 0:02:14.9]} 43... Ke5 {[%clk 0:02:11.2]} 44.
Kd2 {[%clk 0:02:10]} 44... Kd5 {[%clk 0:02:08.1]} 45. Ke3 {[%clk 0:02:08.6]}
45... Nc4+ {[%clk 0:02:06.3]} 46. Nxc4 {[%clk 0:02:06]} 46... Kxc4 {[%clk
0:02:06]} 47. Kf4 {[%clk 0:02:04.6]} 47... a4 {[%clk 0:02:05.3]} 48. Ke5 {[%clk
0:02:02.9]} 48... a3 {[%clk 0:02:04.9]} 49. Kf6 {[%clk 0:02:02.8]} 49... a2
{[%clk 0:02:03.6]} 50. Kxf7 {[%clk 0:02:02.7]} 50... a1=Q {[%clk 0:02:02.5]} 51.
Kg7 {[%clk 0:02:02.6]} 51... Qb2 {[%clk 0:01:59.3]} 52. Kxh7 {[%clk 0:02:02.5]}
52... Qxf2 {[%clk 0:01:58.2]} 53. h4 {[%clk 0:02:00.8]} 53... Qxg2 {[%clk
0:01:57.2]} 54. h5 {[%clk 0:02:00.7]} 54... Nf5 {[%clk 0:01:52]} 55. h6 {[%clk
0:02:00.6]} 55... Qh3 {[%clk 0:01:48.4]} 56. Kg6 {[%clk 0:01:51.3]} 56... Nxh6
{[%clk 0:01:46.1]} 57. Kh7 {[%clk 0:01:49.8]} 57... Nf5+ {[%clk 0:01:44.6]} 58.
Kg8 {[%clk 0:01:48.4]} 58... Kd5 {[%clk 0:01:38.4]} 59. Kf7 {[%clk 0:01:47.3]}
59... Qh7+ {[%clk 0:01:35.5]} 60. Kf6 {[%clk 0:01:41.3]} 60... Nd6 {[%clk
0:01:27.6]} 61. Kg5 {[%clk 0:01:39.2]} 61... Qg7+ {[%clk 0:01:25.6]} 62. Kf4
{[%clk 0:01:36.8]} 62... Qf6+ {[%clk 0:01:24.2]} 63. Ke3 {[%clk 0:01:35.1]}
63... Qd4+ {[%clk 0:01:22.6]} 64. Kf3 {[%clk 0:01:34.1]} 64... Qe4+ {[%clk
0:01:20.8]} 65. Kf2 {[%clk 0:01:33.5]} 65... Kd4 {[%clk 0:01:18.9]} 66. Kg3
{[%clk 0:01:32.7]} 66... Nf5+ {[%clk 0:01:15.2]} 67. Kh2 {[%clk 0:01:32.6]}
67... Qh4+ {[%clk 0:01:10.3]} 68. Kg2 {[%clk 0:01:31.4]} 68... Qg3+ {[%clk
0:01:09.1]} 69. Kf1 {[%clk 0:01:29.9]} 69... Ne3+ {[%clk 0:01:06.5]} 70. Ke2
{[%clk 0:01:28.8]} 70... Qg2+ {[%clk 0:01:04.9]} 71. Ke1 {[%clk 0:01:25.6]}
71... Qf1+ {[%clk 0:01:03.9]} 72. Kd2 {[%clk 0:01:24.8]} 72... Qd1# {[%clk
0:01:02.9]} 0-1

[Event "Live Chess"]
[Site "Chess.com"]
[Date "2024.06.02"]
[Round "-"]
[White "MagnersCarlsberg2870"]
[Black "Mikhail_Golubev"]
[Result "0-1"]
[WhiteElo "1815"]
[BlackElo "2553"]
[TimeControl "300"]
[EndTime "19:40:12 PDT"]
[Termination "Mikhail_Golubev won by resignation"]

1. d4 {[%clk 0:04:53]} 1... g6 {[%clk 0:04:57.6]} 2. c4 {[%clk 0:04:50.1]} 2...
Bg7 {[%clk 0:04:56.3]} 3. Nc3 {[%clk 0:04:49.1]} 3... d6 {[%clk 0:04:55.4]} 4.
e4 {[%clk 0:04:48]} 4... Nc6 {[%clk 0:04:54.5]} 5. Be3 {[%clk 0:04:42.9]} 5...
e5 {[%clk 0:04:51.3]} 6. d5 {[%clk 0:04:41.1]} 6... Nd4 {[%clk 0:04:50.4]} 7.
Nce2 {[%clk 0:04:22.6]} 7... c5 {[%clk 0:04:48.6]} 8. f4 {[%clk 0:04:09.3]} 8...
exf4 {[%clk 0:04:41.3]} 9. Bxd4 {[%clk 0:04:04.3]} 9... cxd4 {[%clk 0:04:38.7]}
10. Nxd4 {[%clk 0:04:03.1]} 10... Qa5+ {[%clk 0:04:26.6]} 11. Kf2 {[%clk
0:03:55.9]} 11... Qb6 {[%clk 0:04:17]} 12. Nf3 {[%clk 0:03:50.8]} 12... Bg4
{[%clk 0:04:07.1]} 13. Be2 {[%clk 0:03:49.4]} 13... Bxf3 {[%clk 0:04:05.6]} 0-1

[Event "Live Chess"]
[Site "Chess.com"]
[Date "2024.06.02"]
[Round "-"]
[White "CarmelJane"]
[Black "Dhaydon19"]
[Result "0-1"]
[WhiteElo "2049"]
[BlackElo "2683"]
[TimeControl "300"]
[EndTime "19:42:33 PDT"]
[Termination "Dhaydon19 won by resignation"]

1. Nf3 {[%clk 0:04:56.9]} 1... d5 {[%clk 0:04:59.2]} 2. g3 {[%clk 0:04:56.8]}
2... Nf6 {[%clk 0:04:58.3]} 3. Bg2 {[%clk 0:04:56.7]} 3... b6 {[%clk 0:04:57.3]}
4. O-O {[%clk 0:04:55.9]} 4... Bb7 {[%clk 0:04:56.9]} 5. d3 {[%clk 0:04:55.2]}
5... Nbd7 {[%clk 0:04:56.4]} 6. c3 {[%clk 0:04:54.8]} 6... e6 {[%clk 0:04:55.7]}
7. Re1 {[%clk 0:04:54.4]} 7... Be7 {[%clk 0:04:53.9]} 8. Nbd2 {[%clk 0:04:50.3]}
8... O-O {[%clk 0:04:52.3]} 9. e4 {[%clk 0:04:49.3]} 9... dxe4 {[%clk
0:04:50.7]} 10. dxe4 {[%clk 0:04:49.2]} 10... Nc5 {[%clk 0:04:48.9]} 11. e5
{[%clk 0:04:41]} 11... Nd5 {[%clk 0:04:40.6]} 12. Nb3 {[%clk 0:04:37.2]} 12...
a5 {[%clk 0:04:30.4]} 13. Nbd4 {[%clk 0:04:30.5]} 13... Ba6 {[%clk 0:04:26.8]}
14. Nc6 {[%clk 0:04:26.7]} 14... Qe8 {[%clk 0:04:23.8]} 15. Nxe7+ {[%clk
0:04:24.5]} 15... Qxe7 {[%clk 0:04:20.9]} 16. Nd4 {[%clk 0:04:22.9]} 16... Nd3
{[%clk 0:04:18]} 17. Bxd5 {[%clk 0:04:13]} 17... exd5 {[%clk 0:04:11.3]} 18. Re3
{[%clk 0:04:05.3]} 18... Nc5 {[%clk 0:03:59]} 19. Nf5 {[%clk 0:03:54.6]} 19...
Qe6 {[%clk 0:03:44.4]} 20. Qg4 {[%clk 0:03:50]} 20... g6 {[%clk 0:03:42.2]} 21.
Nh6+ {[%clk 0:03:48.2]} 21... Kg7 {[%clk 0:03:41.3]} 22. Qh4 {[%clk 0:03:47.2]}
22... Bb7 {[%clk 0:03:33.1]} 23. Ng4 {[%clk 0:03:37.4]} 23... h5 {[%clk
0:03:30.2]} 24. Nf6 {[%clk 0:03:30.4]} 24... Ne4 {[%clk 0:03:28.9]} 25. Rxe4
{[%clk 0:02:59.8]} 25... dxe4 {[%clk 0:03:24.8]} 26. Qg5 {[%clk 0:02:56.1]}
26... Rh8 {[%clk 0:03:22.7]} 27. Be3 {[%clk 0:02:34.4]} 27... Rad8 {[%clk
0:03:15.5]} 28. g4 {[%clk 0:02:25.9]} 28... hxg4 {[%clk 0:03:11.2]} 29. Nxg4
{[%clk 0:02:21.9]} 29... Qf5 {[%clk 0:03:07.2]} 30. e6 {[%clk 0:01:50.9]} 30...
Qxe6 {[%clk 0:02:57.2]} 31. Bd4+ {[%clk 0:01:43.9]} 31... Rxd4 {[%clk
0:02:55.2]} 32. cxd4 {[%clk 0:01:43.8]} 32... Rh5 {[%clk 0:02:44.5]} 33. Qf4
{[%clk 0:01:35.2]} 33... Rf5 {[%clk 0:02:35.2]} 34. Qe3 {[%clk 0:01:25.6]} 34...
Rh5 {[%clk 0:02:19.5]} 35. Qg3 {[%clk 0:01:20.2]} 35... Rg5 {[%clk 0:02:14.2]}
36. h3 {[%clk 0:01:19.6]} 36... Qd6 {[%clk 0:02:09.7]} 37. Qxd6 {[%clk
0:01:14.4]} 37... cxd6 {[%clk 0:02:08.4]} 38. Kh2 {[%clk 0:01:10.8]} 38... f5
{[%clk 0:02:05.4]} 39. Ne3 {[%clk 0:01:08.9]} 39... Rh5 {[%clk 0:02:01.4]} 40.
Nc4 {[%clk 0:01:07.1]} 40... f4 {[%clk 0:01:56.1]} 41. Nxd6 {[%clk 0:01:04.4]}
41... Bd5 {[%clk 0:01:52.9]} 42. Rc1 {[%clk 0:01:00.2]} 42... Kf6 {[%clk
0:01:48.9]} 43. Ne8+ {[%clk 0:00:54.4]} 43... Ke7 {[%clk 0:01:46.7]} 44. Nc7
{[%clk 0:00:53.1]} 44... Bxa2 {[%clk 0:01:42]} 45. Re1 {[%clk 0:00:48.2]} 45...
Kd6 {[%clk 0:01:36.6]} 46. Ne8+ {[%clk 0:00:46.7]} 46... Kd5 {[%clk 0:01:29.6]}
47. Nf6+ {[%clk 0:00:45.2]} 47... Kxd4 {[%clk 0:01:28.6]} 48. Rxe4+ {[%clk
0:00:29.9]} 48... Kd3 {[%clk 0:01:24.9]} 49. Rxf4 {[%clk 0:00:27.8]} 49... Rf5
{[%clk 0:01:22.8]} 50. Rxf5 {[%clk 0:00:21.6]} 50... gxf5 {[%clk 0:01:21.9]} 51.
h4 {[%clk 0:00:21.5]} 51... Kc2 {[%clk 0:01:17]} 52. h5 {[%clk 0:00:20.4]} 52...
Bf7 {[%clk 0:01:15.7]} 53. h6 {[%clk 0:00:19.8]} 53... Bg6 {[%clk 0:01:15.3]}
54. h7 {[%clk 0:00:18.4]} 54... Bxh7 {[%clk 0:01:13.8]} 55. Nxh7 {[%clk
0:00:18.3]} 55... Kxb2 {[%clk 0:01:13]} 56. Nf8 {[%clk 0:00:18.2]} 56... a4
{[%clk 0:01:10.5]} 57. Nd7 {[%clk 0:00:17.7]} 57... a3 {[%clk 0:01:05.9]} 58.
Nxb6 {[%clk 0:00:17.2]} 58... a2 {[%clk 0:01:05.1]} 59. Nc4+ {[%clk 0:00:17.1]}
59... Kb3 {[%clk 0:01:01.2]} 60. Nd2+ {[%clk 0:00:16]} 60... Kc3 {[%clk
0:00:59.4]} 61. Nf3 {[%clk 0:00:14.4]} 61... a1=Q {[%clk 0:00:58]} 62. Kg3
{[%clk 0:00:14.3]} 62... Qc1 {[%clk 0:00:57]} 63. Nh4 {[%clk 0:00:12.6]} 63...
Qg5+ {[%clk 0:00:55.3]} 64. Kh3 {[%clk 0:00:11.1]} 64... Qg4+ {[%clk 0:00:54.7]}
0-1

[Event "Live Chess"]
[Site "Chess.com"]
[Date "2024.06.02"]
[Round "-"]
[White "Mangoalo"]
[Black "NeilDruggan73"]
[Result "0-1"]
[WhiteElo "1069"]
[BlackElo "1779"]
[TimeControl "300"]
[EndTime "19:43:06 PDT"]
[Termination "NeilDruggan73 won by resignation"]

1. e4 {[%clk 0:04:58.5]} 1... d6 {[%clk 0:04:58.7]} 2. Nf3 {[%clk 0:04:57.6]}
2... Nf6 {[%clk 0:04:58.1]} 3. Nc3 {[%clk 0:04:56.1]} 3... g6 {[%clk 0:04:57.2]}
4. d3 {[%clk 0:04:55.1]} 4... Bg7 {[%clk 0:04:56.8]} 5. Bg5 {[%clk 0:04:54.2]}
5... O-O {[%clk 0:04:55.8]} 6. Be2 {[%clk 0:04:53.4]} 6... h6 {[%clk 0:04:54.9]}
7. Bxf6 {[%clk 0:04:52.6]} 7... exf6 {[%clk 0:04:50.9]} 8. O-O {[%clk
0:04:52.2]} 8... b6 {[%clk 0:04:48.5]} 9. Qd2 {[%clk 0:04:48.6]} 9... Bb7 {[%clk
0:04:46.8]} 10. Rfe1 {[%clk 0:04:45.6]} 10... Kh7 {[%clk 0:04:45.8]} 11. Rad1
{[%clk 0:04:44.1]} 11... Nd7 {[%clk 0:04:45]} 12. d4 {[%clk 0:04:42.8]} 12...
Re8 {[%clk 0:04:41.3]} 13. Bd3 {[%clk 0:04:39.5]} 13... a6 {[%clk 0:04:36.8]}
14. Nh4 {[%clk 0:04:37.9]} 14... b5 {[%clk 0:04:26.2]} 15. e5 {[%clk 0:04:36.7]}
15... f5 {[%clk 0:04:18.9]} 16. Nxf5 {[%clk 0:04:32.1]} 16... gxf5 {[%clk
0:04:16.5]} 17. Bxf5+ {[%clk 0:04:32]} 17... Kh8 {[%clk 0:04:14]} 18. Qf4 {[%clk
0:04:16.1]} 18... Nf8 {[%clk 0:04:11.8]} 19. Re3 {[%clk 0:04:12]} 19... Ne6
{[%clk 0:04:07.5]} 20. Bxe6 {[%clk 0:04:05]} 20... Rxe6 {[%clk 0:04:03.8]} 21.
Rg3 {[%clk 0:04:01.4]} 21... Qe8 {[%clk 0:03:47.3]} 22. Re1 {[%clk 0:03:53.3]}
22... c5 {[%clk 0:03:38]} 23. d5 {[%clk 0:03:52.4]} 23... Bxe5 {[%clk 0:03:30]}
24. Rxe5 {[%clk 0:03:41]} 24... dxe5 {[%clk 0:03:24.3]} 25. Qe3 {[%clk
0:03:29.6]} 25... Rg6 {[%clk 0:03:15.6]} 26. Rh3 {[%clk 0:03:13.5]} 26... Kh7
{[%clk 0:03:10.6]} 27. Qe4 {[%clk 0:03:03.7]} 27... Rd8 {[%clk 0:03:05]} 28. g4
{[%clk 0:02:48.5]} 28... b4 {[%clk 0:03:03.9]} 29. g5 {[%clk 0:02:46]} 29...
bxc3 {[%clk 0:02:52.9]} 30. Rxh6+ {[%clk 0:02:43.5]} 30... Kg7 {[%clk
0:02:51.7]} 31. Rxg6+ {[%clk 0:02:35.5]} 31... fxg6 {[%clk 0:02:49.4]} 32. bxc3
{[%clk 0:02:32.9]} 32... Rxd5 {[%clk 0:02:41.7]} 33. Kg2 {[%clk 0:02:28.6]}
33... Rd7 {[%clk 0:02:39.3]} 34. Qxb7 {[%clk 0:02:26.8]} 34... Rxb7 {[%clk
0:02:37.2]} 0-1

[Event "Live Chess"]
[Site "Chess.com"]
[Date "2024.06.02"]
[Round "-"]
[White "grillage"]
[Black "RafaelRony"]
[Result "1-0"]
[WhiteElo "1854"]
[BlackElo "1064"]
[TimeControl "300"]
[EndTime "19:44:53 PDT"]
[Termination "grillage won by resignation"]

1. d4 {[%clk 0:04:56.2]} 1... d5 {[%clk 0:04:59.1]} 2. Nf3 {[%clk 0:04:52.6]}
2... Nf6 {[%clk 0:04:57.7]} 3. c4 {[%clk 0:04:51.1]} 3... e6 {[%clk 0:04:56.5]}
4. cxd5 {[%clk 0:04:49.7]} 4... exd5 {[%clk 0:04:55.9]} 5. Nc3 {[%clk
0:04:48.2]} 5... Be7 {[%clk 0:04:55.4]} 6. Bg5 {[%clk 0:04:45.4]} 6... O-O
{[%clk 0:04:54.6]} 7. e3 {[%clk 0:04:37.6]} 7... h6 {[%clk 0:04:51.7]} 8. Bh4
{[%clk 0:04:33.4]} 8... c6 {[%clk 0:04:50]} 9. Qc2 {[%clk 0:04:31.4]} 9... Nbd7
{[%clk 0:04:47.6]} 10. Bd3 {[%clk 0:04:29.1]} 10... b6 {[%clk 0:04:42.5]} 11.
O-O {[%clk 0:04:16.6]} 11... Bb7 {[%clk 0:04:41.1]} 12. Rac1 {[%clk 0:03:59.1]}
12... Rc8 {[%clk 0:04:38.8]} 13. Qa4 {[%clk 0:03:53.2]} 13... a5 {[%clk
0:04:25.2]} 14. Bg3 {[%clk 0:03:38.2]} 14... Re8 {[%clk 0:04:20.5]} 15. Ne2
{[%clk 0:03:29.1]} 15... Nf8 {[%clk 0:04:19.7]} 16. Ne5 {[%clk 0:03:22.7]} 16...
Ng6 {[%clk 0:04:16.2]} 17. Nxc6 {[%clk 0:02:58.3]} 17... Bxc6 {[%clk 0:04:04.3]}
18. Rxc6 {[%clk 0:02:55.8]} 18... Qd7 {[%clk 0:03:51.9]} 19. Bb5 {[%clk
0:02:53.5]} 19... Qb7 {[%clk 0:03:47.4]} 20. Rfc1 {[%clk 0:02:46.5]} 20... Red8
{[%clk 0:03:44.9]} 21. h3 {[%clk 0:02:32.2]} 21... Ne4 {[%clk 0:03:40.1]} 22.
Bc7 {[%clk 0:02:11.6]} 22... Re8 {[%clk 0:03:12.5]} 23. Bxb6 {[%clk 0:02:05.2]}
23... Rxc6 {[%clk 0:03:08.3]} 24. Rxc6 {[%clk 0:02:02.6]} 24... Rb8 {[%clk
0:02:56.5]} 25. Qxa5 {[%clk 0:01:55.5]} 25... Bf8 {[%clk 0:02:29]} 26. a4 {[%clk
0:01:49.6]} 26... Ne7 {[%clk 0:02:25.4]} 27. Bc7 {[%clk 0:01:17.8]} 27... Nxc6
{[%clk 0:02:16.4]} 28. Bxc6 {[%clk 0:01:12.6]} 28... Qxb2 {[%clk 0:01:55.5]} 29.
Bxb8 {[%clk 0:01:10.9]} 29... Qxe2 {[%clk 0:01:44.6]} 30. Bg3 {[%clk 0:00:56.2]}
30... Qe1+ {[%clk 0:01:32.1]} 31. Kh2 {[%clk 0:00:54.2]} 31... Nxg3 {[%clk
0:01:21.9]} 32. fxg3 {[%clk 0:00:53]} 32... Bd6 {[%clk 0:01:20.9]} 33. Qxe1
{[%clk 0:00:47.7]} 1-0